fUST/lending_fUST_20250618
["ID","MTS","AMOUNT","RATE_DAILY","PERIOD"]
[366363507,1750215039768,-229.98435572,0.00024,7]
[366363508,1750215039777,-835.98428123,0.00024,3]
[366363509,1750215039786,-835.98428123,0.00024,7]
[366363510,1750215039795,-424.70586748,0.00024,3]
[366363511,1750215039805,-424.70586748,0.00024,7]
[366363512,1750215039814,-151.899064,0.00024,7]
[366363513,1750215039823,-10528.26698796,0.00024,2]
[366363514,1750215039837,-2711.90020273,0.00024,2]
[366363515,1750215039849,-1000.9999859,0.00024,2]
[366363520,1750215040822,-371.31075422,0.00022462,2]
[366363536,1750215043660,-128.71163106,0.00022462,2]
[366363538,1750215043669,-5535.2849941,0.00024,2]
[366363605,1750215046647,-337.30114556,0.00024,2]
[366363606,1750215071166,728.54182231,0.00021458,2]
[366363607,1750215077782,332.14,0.00019914,2]
[366363609,1750215490165,162.240238,0.00013699,2]
[366363611,1750215956128,-600.55666916,0.00019421,2]
[366363614,1750216035087,-4399.44333084,0.00019421,2]
[366363615,1750216035108,-179.8785242,0.00019617,2]
[366363616,1750216035131,-207.49703903,0.00019658,2]
[366363617,1750216035161,-174.71296097,0.00019658,2]
[366363618,1750216035185,-1544.19656238,0.000208,2]
[366363619,1750216050085,-215.80343762,0.000208,2]
[366363620,1750216050105,-1332.2671019,0.0002084,2]
[366363621,1750216084924,2185.59425396,0.00018,2]
[366363623,1750216150119,-350.9688352,0.0002084,2]
[366363624,1750216150142,-168.0,0.00021274,2]
[366363625,1750216150164,-168.0,0.00021382,2]
[366363626,1750216150185,-276.67065073,0.00021444,2]
[366363627,1750216161093,-345.7636,0.00019646,2]
[366363628,1750216231836,-150.0,0.000189,2]
[366363629,1750216231846,-39.0364,0.00019646,2]
[366363630,1750216231857,-1051.3417523,0.00020879,2]
[366363631,1750216231867,-769.59,0.00021432,2]
[366363632,1750216231876,-23.32934927,0.00021444,2]
[366363633,1750216231886,-182.669151,0.00021613,2]
[366363634,1750216231896,-168.0,0.00021645,2]
[366363635,1750216231906,-284.08525493,0.00021675,2]
[366363636,1750216231915,-168.0,0.00021734,2]
[366363637,1750216231925,-402.417194,0.0002181,12]
[366363638,1750216231934,-207.81348876,0.000219,6]
[366363639,1750216231944,-131.54141638,0.00021916,2]
[366363640,1750216231956,-168.45858362,0.00021916,2]
[366363641,1750216231965,-1200.0,0.00021916,2]
[366363642,1750216231975,-465.81802846,0.00021917,6]
[366363643,1750216231985,-470.95122266,0.00021917,6]
[366363644,1750216231994,-460.0,0.00021917,6]
[366363645,1750216232004,-460.0,0.00021917,6]
[366363646,1750216232013,-470.84406361,0.00021917,6]
[366363647,1750216232023,-1654.02,0.00021917,6]
[366363648,1750216232033,-471.73671269,0.00021917,6]
[366363649,1750216232043,-402.417194,0.00021938,14]
[366363650,1750216232053,-1654.02,0.00022027,6]
[366363651,1750216232062,-402.417194,0.00022066,8]
[366363652,1750216232072,-1654.02,0.00022136,6]
[366363653,1750216232081,-168.0,0.00022191,2]
[366363654,1750216232091,-402.417194,0.00022195,14]
[366363655,1750216232101,-165.30101684,0.00022202,2]
[366363656,1750216232110,-1654.02,0.00022246,6]
[366363658,1750216232120,-465.88792697,0.0002228,2]
[366363660,1750216232130,-417.51433095,0.00022302,2]
[366363662,1750216232139,-155.77003678,0.00022302,2]
[366363664,1750216232149,-172.93939473,0.00022302,2]
[366363666,1750216232158,-460.0,0.00022302,6]
[366363668,1750216232168,-487.9,0.00022302,6]
[366363670,1750216232177,-25000.0,0.00022303,2]
[366363672,1750216232187,-4062.38569926,0.00022303,2]
[366363674,1750216232197,-207.4,0.00022303,2]
[366363676,1750216232207,-402.417194,0.00022323,8]
[366363678,1750216232216,-1654.02,0.00022356,6]
[366363680,1750216232226,-460.0,0.00022411,6]
[366363682,1750216232236,-402.417194,0.00022451,12]
[366363683,1750216232245,-1654.02,0.00022465,6]
[366363685,1750216232255,-388.82,0.00022521,6]
[366363687,1750216232265,-207.81348871,0.00022567,7]
[366363689,1750216232274,-1654.02,0.00022575,6]
[366363690,1750216232284,-402.417194,0.00022579,5]
[366363692,1750216232293,-165.30101682,0.00022609,2]
[366363693,1750216232303,-1654.02,0.00022684,6]
[366363694,1750216232312,-578.47214156,0.00022703,2]
[366363695,1750216232321,-402.417194,0.00022707,7]
[366363696,1750216232331,-174.025,0.00022786,2]
[366363697,1750216232341,-177.414,0.00022786,2]
[366363698,1750216232350,-1654.02,0.00022794,6]
[366363699,1750216232363,-1000.0,0.000228,2]
[366363700,1750216232373,-402.417194,0.00022836,8]
[366363701,1750216232382,-25000.0,0.00022851,2]
[366363702,1750216232392,-1654.02,0.00022904,6]
[366363703,1750216232402,-402.417194,0.00022964,7]
[366363704,1750216232411,-1654.02,0.00023013,6]
[366363705,1750216232420,-165.30101682,0.00023016,2]
[366363706,1750216232431,-402.417194,0.00023092,5]
[366363707,1750216232440,-1654.02,0.00023123,6]
[366363708,1750216232450,-739.60333321,0.00023173,2]
[366363709,1750216232459,-1154.39,0.00023218,2]
[366363710,1750216232468,-460.0,0.0002322,6]
[366363711,1750216232478,-460.0,0.0002322,6]
[366363712,1750216232487,-402.417194,0.0002322,2]
[366363713,1750216232496,-1654.02,0.00023232,6]
[366363714,1750216232506,-207.81348871,0.00023233,8]
[366363715,1750216232515,-168.0,0.00023252,2]
[366363716,1750216232525,-460.0,0.00023329,6]
[366363717,1750216232535,-165.99447671,0.00023329,6]
[366363718,1750216232544,-1654.02,0.00023342,6]
[366363719,1750216232554,-402.417194,0.00023349,5]
[366363720,1750216232563,-500.0,0.00023398,2]
[366363721,1750216232573,-500.0,0.00023398,2]
[366363722,1750216232583,-230.23739808,0.00023398,2]
[366363723,1750216232717,-500.0,0.00023398,2]
[366363724,1750216232727,-500.0,0.00023398,2]
[366363725,1750216232737,-500.0,0.00023398,2]
[366363726,1750216232747,-481.93815506,0.00023398,2]
[366363727,1750216232756,-500.0,0.00023398,2]
[366363728,1750216232766,-25000.0,0.00023399,2]
[366363729,1750216232775,-165.30101682,0.00023423,2]
[366363730,1750216232784,-1654.02,0.00023452,6]
[366363731,1750216232793,-402.417194,0.00023477,12]
[366363732,1750216232803,-517.75421615,0.00023484,2]
[366363733,1750216232813,-2015.26,0.000235,4]
[366363734,1750216232823,-528.458714,0.0002352,3]
[366363735,1750216232833,-1654.02,0.00023561,6]
[366363736,1750216232844,-402.417194,0.00023605,12]
[366363737,1750216232854,-1654.02,0.00023671,6]
[366363738,1750216232863,-215.0738,0.00023672,2]
[366363739,1750216232873,-402.417194,0.00023733,12]
[366363740,1750216232882,-1654.02,0.0002378,6]
[366363741,1750216232892,-408.95,0.00023794,2]
[366363742,1750216232901,-355.5210253,0.00023799,6]
[366363743,1750216232910,-258.36080698,0.00023799,6]
[366363744,1750216232919,-475.12146793,0.00023799,6]
[366363745,1750216232928,-340.23878557,0.00023799,6]
[366363746,1750216232937,-418.21402462,0.00023799,6]
[366363747,1750216232946,-464.23066615,0.00023799,6]
[366363748,1750216232954,-462.72220538,0.00023799,6]
[366363749,1750216232963,-460.0,0.00023799,6]
[366363750,1750216232972,-2000.0,0.000238,3]
[366363751,1750216232981,-2000.0,0.000238,4]
[366363752,1750216232990,-1026.76,0.000238,5]
[366363753,1750216232999,-1000.0,0.000238,8]
[366363754,1750216233008,-420.0,0.00023817,2]
[366363755,1750216233017,-165.30101682,0.00023831,2]
[366363756,1750216233027,-999.69733969,0.00023836,30]
[366363757,1750216233042,-435.52990829,0.00023836,30]
[366363758,1750216233057,-4672.877028,0.00023836,30]
[366363759,1750216233069,-493.52358549,0.00023836,30]
[366363760,1750216233081,-1771.67079875,0.00023836,30]
[366363773,1750216237653,-733.10675888,0.00023836,30]
[366363779,1750216237709,-798.52629353,0.00023836,30]
[366363782,1750216237720,-433.17476135,0.00023836,30]
[366363788,1750216237765,-591.28935889,0.00023836,30]
[366363791,1750216237776,-1612.9973168,0.00023836,30]
[366363793,1750216237786,-315.48910325,0.00023836,30]
[366363795,1750216237794,-500.0,0.00023841,2]
[366363797,1750216237803,-402.417194,0.00023861,6]
[366363799,1750216237813,-353.62984601,0.0002389,6]
[366364026,1750216240063,-707.8299102,0.0002389,6]
[366364269,1750216242855,-66.7285188,0.00019726,2]
[366364273,1750216242881,-313.6714812,0.00019726,2]
[366364275,1750216242891,-166.66591546,0.0002152,2]
[366364277,1750216242902,-594.12408454,0.0002152,2]
[366364279,1750216242911,-1141.19,0.00023313,2]
[366364281,1750216242920,-39.37172346,0.0002389,6]
[366364283,1750216242933,-553.18852033,0.0002389,6]
[366364285,1750216242943,-207.81348871,0.000239,10]
[366364287,1750216242952,-214.0,0.00023929,2]
[366364289,1750216242962,-462.49551176,0.00023973,2]
[366364292,1750216242979,-40.55186653,0.00023973,2]
[366364293,1750216242988,-501.70901875,0.00023973,2]
[366364295,1750216242997,-511.62030162,0.00023973,2]
[366364297,1750216243007,-500.0,0.00023973,2]
[366364299,1750216243016,-402.417194,0.0002399,9]
[366364301,1750216243025,-160.0,0.00023992,2]
[366364303,1750216243035,-213.43818883,0.00023992,2]
[366364305,1750216243045,-229.98435572,0.00023992,2]
[366364307,1750216243055,-835.98428123,0.00023993,2]
[366364309,1750216243064,-160.0,0.00023993,2]
[366364311,1750216243074,-160.0,0.00023999,2]
[366364314,1750216243083,-500.0,0.00023999,2]
[366364317,1750216243093,-500.0,0.00023999,2]
[366364320,1750216243102,-203.98575188,0.00024,3]
[366364322,1750216243112,-166.0,0.00024,3]
[366364324,1750216243121,-1747.0,0.00024,3]
[366364326,1750216243131,-166.0,0.00024,3]
[366364328,1750216243140,-166.0,0.00024,3]
[366364330,1750216243149,-1747.0,0.00024,3]
[366364332,1750216243159,-166.0,0.00024,3]
[366364334,1750216243168,-166.0,0.00024,3]
[366364336,1750216243178,-1747.0,0.00024,3]
[366364338,1750216243187,-166.0,0.00024,3]
[366364340,1750216243196,-166.0,0.00024,3]
[366364342,1750216243206,-1747.0,0.00024,3]
[366364344,1750216243215,-166.0,0.00024,3]
[366364346,1750216243225,-1747.0,0.00024,3]
[366364348,1750216243235,-166.0,0.00024,3]
[366364350,1750216243244,-166.0,0.00024,3]
[366364352,1750216243255,-1747.0,0.00024,3]
[366364354,1750216243264,-166.0,0.00024,3]
[366364356,1750216243274,-166.0,0.00024,3]
[366364358,1750216243283,-600.51528584,0.00024,3]
[366364360,1750216243293,-166.0,0.00024,3]
[366364362,1750216243304,-166.0,0.00024,3]
[366364364,1750216243313,-172.0,0.00024,3]
[366364366,1750216243323,-317.0,0.00024,3]
[366364368,1750216243332,-317.0,0.00024,3]
[366364370,1750216243342,-317.0,0.00024,3]
[366364372,1750216243352,-317.0,0.00024,3]
[366364374,1750216243364,-350.98116314,0.00024,3]
[366364376,1750216243373,-835.98428123,0.00024,3]
[366364378,1750216243383,-10653.70803183,0.00024,2]
[366364380,1750216243395,-273.69572681,0.00024,2]
[366364618,1750216245763,-845.78193577,0.00023992,2]
[366364620,1750216245773,-1833.63806423,0.00024,2]
[366364632,1750216245868,-3770.27475728,0.00024,2]
[366367583,1750216522749,162.240238,0.00013699,2]
[366367584,1750217159885,322.0,0.00023,80]
[366367585,1750217222202,-170.31598254,0.00018999,2]
[366367586,1750217226110,-2342.333336,0.00018999,2]
[366367587,1750217226769,-150.0,0.00018999,2]
[366367588,1750217248082,-840.24353633,0.00018999,2]
[366367589,1750217248812,-150.26498568,0.00018999,2]
[366367590,1750217250109,-1346.84215945,0.00018999,2]
[366367591,1750217250131,-349.7,0.0002005,2]
[366367592,1750217250153,-29.45277976,0.00021319,2]
[366367593,1750217267930,1101.37616797,0.00018,2]
[366367594,1750217267953,3076.29451373,0.00018,2]
[366367595,1750217315372,1000.0,0.0001,2]
[366367597,1750217345095,-294.8449308,0.000195,5]
[366367598,1750217362093,-60.04015254,0.000195,5]
[366367599,1750217362112,-160.0,0.0002,5]
[366367600,1750217362133,-368.32,0.00020027,2]
[366367601,1750217362153,-1117.61305944,0.00021105,2]
[366367602,1750217362173,-96.45137892,0.00021319,2]
[366367603,1750217363111,-124.09584132,0.00021319,2]
[366367604,1750217363131,-1509.53328174,0.000215,2]
[366367799,1750217438047,-363.63,0.00020091,2]
[366367801,1750217438057,-2346.8523704,0.00021285,2]
[366367803,1750217438066,-154.01403681,0.000215,2]
[366367805,1750217438076,-727.27,0.00021918,2]
[366367807,1750217438086,-300.0,0.00022301,2]
[366367809,1750217438096,-460.0,0.00022302,6]
[366367811,1750217438106,-460.0,0.00022411,6]
[366367813,1750217438115,-460.0,0.00022521,6]
[366367815,1750217438124,-460.0,0.0002263,6]
[366367817,1750217438134,-460.0,0.00022739,6]
[366367819,1750217438143,-460.0,0.00022739,6]
[366367821,1750217438152,-460.0,0.0002274,6]
[366367823,1750217438162,-1111.0,0.00022849,2]
[366367825,1750217438171,-382.09026343,0.00022849,6]
[366367827,1750217438181,-460.0,0.0002285,6]
[366367829,1750217438190,-208.17689363,0.000229,8]
[366367831,1750217438199,-300.0,0.00022958,2]
[366367833,1750217438208,-300.0,0.00022958,2]
[366367835,1750217438217,-460.0,0.00022959,6]
[366367837,1750217438227,-460.0,0.00023069,6]
[366367839,1750217438236,-835.98428123,0.0002317,2]
[366367841,1750217438245,-229.98435572,0.0002317,2]
[366367843,1750217438256,-160.0,0.0002317,2]
[366367845,1750217438265,-845.78193577,0.0002317,2]
[366367847,1750217438274,-460.0,0.00023178,6]
[366367849,1750217438283,-207.4,0.00023199,2]
[366367851,1750217438293,-350.04173578,0.00023212,6]
[366367852,1750217438302,-460.0,0.00023212,6]
[366367855,1750217438311,-460.0,0.00023212,6]
[366367857,1750217438321,-460.0,0.00023212,6]
[366367859,1750217438330,-460.0,0.00023212,6]
[366367861,1750217438339,-460.0,0.00023212,6]
[366367862,1750217438348,-460.0,0.00023212,6]
[366367864,1750217438358,-460.0,0.00023212,6]
[366367866,1750217438367,-503.66896634,0.00023283,2]
[366367869,1750217438376,-460.0,0.00023287,6]
[366367871,1750217438386,-460.0,0.00023287,6]
[366367872,1750217438395,-460.0,0.00023287,6]
[366367874,1750217438404,-460.0,0.00023287,6]
[366367876,1750217438413,-460.0,0.00023287,6]
[366367878,1750217438423,-352.82,0.00023287,6]
[366367880,1750217438432,-134.48734876,0.00023287,6]
[366367883,1750217438445,-390.99028716,0.00023287,6]
[366367885,1750217438454,-460.0,0.00023287,6]
[366367887,1750217438463,-1503.04543122,0.00023288,30]
[366368073,1750217443011,-150.0,0.000194,2]
[366368075,1750217443021,-460.0,0.00022739,6]
[366368077,1750217443031,-460.0,0.00022849,6]
[366368079,1750217443041,-460.0,0.00022958,6]
[366368080,1750217443050,-522.41,0.00023068,6]
[366368083,1750217443060,-460.0,0.00023212,6]
[366368084,1750217443069,-496.95456878,0.00023288,30]
[366368086,1750217443079,-526.64130938,0.00023288,30]
[366368089,1750217443090,-817.84,0.00023288,30]
[366368091,1750217443101,-655.51869062,0.00023288,30]
[366368093,1750217443111,-460.0,0.00023288,6]
[366368095,1750217443120,-460.0,0.00023322,6]
[366368097,1750217443129,-460.0,0.00023322,6]
[366368099,1750217443139,-460.0,0.00023322,6]
[366368101,1750217443148,-460.0,0.00023322,6]
[366368103,1750217443157,-460.0,0.00023322,6]
[366368104,1750217443166,-460.0,0.00023322,6]
[366368106,1750217443175,-460.0,0.00023397,6]
[366368108,1750217443184,-359.44218787,0.00023397,6]
[366368110,1750217443193,-45.73413521,0.00023397,6]
[366368346,1750217446130,-460.0,0.00023287,6]
[366368347,1750217446140,-414.26586479,0.00023397,6]
[366368348,1750217446150,-460.0,0.00023397,6]
[366368349,1750217446160,-122.06646837,0.00023397,6]
[366368551,1750217580702,300.60034563,0.000181,2]
[366368552,1750217629059,162.240238,0.00013699,2]
[366368555,1750218438111,-4383.80903194,0.00019198,2]
[366368556,1750218438144,-295.07675324,0.00019198,2]
[366368557,1750218438168,-356.69782058,0.00019681,2]
[366368558,1750218446085,-151.16903462,0.00019581,2]
[366368559,1750218446108,-7.44217942,0.00019681,2]
[366368560,1750218446129,-165.30101682,0.000199,2]
[366368561,1750218446150,-300.0,0.00019998,2]
[366368562,1750218446170,-300.0,0.00019998,2]
[366368563,1750218446190,-1441.4662025,0.00019999,2]
[366368564,1750218446213,-390.87227051,0.00019999,2]
[366368565,1750218446240,-500.0,0.00019999,2]
[366368566,1750218446267,-500.0,0.00019999,2]
[366368567,1750218446289,-500.0,0.00019999,2]
[366368568,1750218446310,-366.525,0.00019999,2]
[366368569,1750218446332,-401.93125347,0.00019999,2]
[366368570,1750218446354,-500.0,0.00019999,2]
[366368571,1750218446378,-500.0,0.00019999,2]
[366368572,1750218446399,-500.0,0.00019999,2]
[366368573,1750218446420,-188.26939024,0.00019999,2]
[366368574,1750218446443,-255.5738236,0.00019999,2]
[366368575,1750218534471,12509.0,0.00024658,120]
[366368576,1750218548108,-1833.43028686,0.00019487,2]
[366368577,1750218548133,-359.5,0.00019684,2]
[366368578,1750218548157,-300.0,0.00019999,2]
[366368579,1750218548181,-302.60173115,0.00019999,2]
[366368580,1750218548206,-500.0,0.00019999,2]
[366368581,1750218548229,-282.8369938,0.00019999,2]
[366368582,1750218548254,-500.0,0.00019999,2]
[366368583,1750218548276,-73400.669605,0.0002,2]
[366368584,1750218548299,-174.025,0.00020626,2]
[366368585,1750218548321,-177.414,0.00020626,2]
[366368586,1750218548351,-1721.51723873,0.000209,4]
[366368587,1750218548380,-1721.5172385,0.00021072,4]
[366368588,1750218548408,-444.19048282,0.00021245,4]
[366368589,1750218548445,-1277.32675568,0.00021245,4]
[366368590,1750218548468,-160.87167116,0.00021297,2]
[366368591,1750218548496,-1721.5172385,0.00021417,5]
[366368592,1750218548521,-719.01,0.00021474,2]
[366368593,1750218558014,354.64,0.0001967,2]
[366368594,1750218558435,709.28,0.00021458,2]
[366368595,1750218605461,728.54182231,0.00021374,2]
[366368626,1750218632071,-1721.5172385,0.0002159,5]
[366368629,1750218632082,-1721.5172385,0.00021762,5]
[366368631,1750218632093,-500.0,0.00021817,2]
[366368632,1750218632106,-165.30101682,0.00021817,2]
[366368634,1750218632115,-169.35438922,0.00021889,2]
[366368637,1750218632125,-501.63433246,0.00021889,2]
[366368639,1750218632135,-300.0,0.00021915,2]
[366368641,1750218632145,-360.0,0.00021917,6]
[366368642,1750218632155,-506.77,0.00021917,6]
[366368645,1750218632164,-460.0,0.00021917,6]
[366368647,1750218632175,-281.81351477,0.00021917,6]
[366368658,1750218632282,-187.72794398,0.00021917,6]
[366368661,1750218632292,-465.49691038,0.00021917,6]
[366368663,1750218632301,-460.0,0.00021917,6]
[366368665,1750218632311,-460.0,0.00021917,6]
[366368667,1750218632320,-460.0,0.00021917,6]
[366368669,1750218632329,-460.0,0.00021917,6]
[366368671,1750218632339,-460.0,0.00021917,6]
[366368673,1750218632348,-460.0,0.00021917,6]
[366368675,1750218632357,-460.0,0.00021917,6]
[366368677,1750218632366,-532.08,0.00021917,6]
[366368679,1750218632376,-460.0,0.00021917,6]
[366368681,1750218632385,-134.69514564,0.00021917,6]
[366368774,1750218638053,-339.79728386,0.00021916,2]
[366368776,1750218638063,-325.30485436,0.00021917,6]
[366368778,1750218638073,-460.0,0.00021917,6]
[366368780,1750218638082,-460.0,0.00021917,6]
[366368782,1750218638091,-379.35747063,0.00021917,6]
[366368785,1750218638111,-80.64252937,0.00021917,6]
[366368787,1750218638121,-154.06,0.00021917,6]
[366368789,1750218638130,-389.50238675,0.00021917,6]
[366368791,1750218638142,-70.49761325,0.00021917,6]
[366368793,1750218638152,-460.0,0.00021917,6]
[366368796,1750218638161,-260.13811432,0.00021917,6]
[366368798,1750218638174,-199.86188568,0.00021917,6]
[366368801,1750218638183,-460.0,0.00021917,6]
[366368804,1750218638193,-246.56495475,0.00021917,6]
[366368806,1750218638202,-460.0,0.00021917,6]
[366368809,1750218638211,-460.0,0.00021917,6]
[366368811,1750218638220,-460.0,0.00021917,6]
[366368814,1750218638230,-314.61656935,0.00021917,6]
[366368817,1750218638239,-460.0,0.00021917,6]
[366368820,1750218638249,-429.37832938,0.00021917,6]
[366368823,1750218638259,-460.0,0.00021917,6]
[366368826,1750218638269,-460.0,0.00021917,6]
[366368829,1750218638279,-460.0,0.00021917,6]
[366368832,1750218638288,-301.38846551,0.00021917,6]
[366368841,1750218638366,-158.61153449,0.00021917,6]
[366368843,1750218638376,-460.0,0.00021917,6]
[366368845,1750218638385,-437.76831656,0.00021917,6]
[366368849,1750218638416,355.26,0.00019716,2]
[366368882,1750218638728,710.52,0.00021508,2]
[366369007,1750218640329,-21.75737214,0.00021917,6]
[366369009,1750218640340,-352.27539511,0.00021917,6]
[366369260,1750218643104,-107.72460489,0.00021917,6]
[366369262,1750218643116,-460.0,0.00021917,6]
[366369264,1750218643127,-460.0,0.00021917,6]
[366369266,1750218643137,-460.0,0.00021917,6]
[366369268,1750218643147,-460.0,0.00021917,6]
[366369270,1750218643156,-460.0,0.00021917,6]
[366369272,1750218643166,-636.6,0.00021917,6]
[366369274,1750218643177,-460.0,0.00021917,6]
[366369276,1750218643186,-460.0,0.00021917,6]
[366369278,1750218643197,-460.0,0.00021917,6]
[366369280,1750218643207,-500.0,0.00021917,2]
[366369282,1750218643216,-460.0,0.00021917,6]
[366369284,1750218643226,-460.0,0.00021917,6]
[366369286,1750218643236,-460.0,0.00021917,6]
[366369288,1750218643247,-504.98633093,0.00021917,6]
[366369290,1750218643256,-394.04909701,0.00021917,6]
[366369292,1750218643266,-460.0,0.00021917,6]
[366369294,1750218643276,-394.24765437,0.00021917,6]
[366369296,1750218643285,-460.0,0.00021917,6]
[366369298,1750218643294,-460.0,0.00021917,6]
[366369300,1750218643304,-355.26366281,0.00021917,6]
[366369302,1750218643313,-316.8,0.00021917,6]
[366369304,1750218643323,-460.0,0.00021917,6]
[366369306,1750218643333,-151.0,0.00021917,6]
[366369308,1750218643342,-460.0,0.00021917,6]
[366369310,1750218643352,-460.0,0.00021917,6]
[366369312,1750218643363,-1721.5172385,0.00021934,6]
[366369314,1750218643372,-169.0,0.00022,2]
[366369316,1750218643382,-222.58,0.00022027,6]
[366369318,1750218643391,-458.29505541,0.00022027,6]
[366369320,1750218643401,-337.93353163,0.00022027,6]
[366369322,1750218643410,-460.0,0.00022027,6]
[366369324,1750218643420,-460.0,0.00022027,6]
[366369326,1750218643430,-460.0,0.00022027,6]
[366369328,1750218643440,-460.0,0.00022027,6]
[366369330,1750218643452,-460.0,0.00022027,6]
[366369332,1750218643462,-460.0,0.00022027,6]
[366369334,1750218643471,-460.0,0.00022027,6]
[366369336,1750218643481,-198.9,0.00022027,6]
[366369338,1750218643491,-460.0,0.00022027,6]
[366369340,1750218643501,-460.0,0.00022027,6]
[366369343,1750218643511,-460.0,0.00022027,6]
[366369344,1750218643520,-458.33,0.00022027,6]
[366369346,1750218643530,-460.0,0.00022027,6]
[366369349,1750218643540,-460.0,0.00022027,6]
[366369351,1750218643551,-552.35,0.00022027,6]
[366369353,1750218643560,-460.0,0.00022027,6]
[366369355,1750218643569,-460.0,0.00022027,6]
[366369356,1750218643579,-460.0,0.00022027,6]
[366369359,1750218643588,-460.0,0.00022027,6]
[366369361,1750218643598,-460.0,0.00022027,6]
[366369363,1750218643607,-460.0,0.00022027,6]
[366369365,1750218643618,-377.48,0.00022027,6]
[366369367,1750218643628,-636.6,0.00022027,6]
[366369369,1750218643637,-460.0,0.00022027,6]
[366369371,1750218643646,-460.0,0.00022027,6]
[366369373,1750218643655,-323.30732445,0.00022027,6]
[366369375,1750218643668,-136.69267555,0.00022027,6]
[366369377,1750218643677,-457.91964445,0.00022027,6]
[366369379,1750218643689,-2.08035555,0.00022027,6]
[366369381,1750218643698,-460.0,0.00022027,6]
[366369383,1750218643708,-460.0,0.00022027,6]
[366369385,1750218643717,-460.0,0.00022027,6]
[366369387,1750218643726,-460.0,0.00022027,6]
[366369389,1750218643736,-408.4294261,0.00022027,6]
[366369399,1750218643821,150.0,0.00019817,2]
[366369634,1750218646060,-460.0,0.00021917,6]
[366369636,1750218646070,-242.06664328,0.00021917,6]
[366369646,1750218646164,-344.17003462,0.00021917,6]
[366369648,1750218646175,-116.9305739,0.00022027,6]
[366369650,1750218646186,-460.0,0.00022027,6]
[366369652,1750218646196,-460.0,0.00022027,6]
[366369654,1750218646206,-460.0,0.00022027,6]
[366369656,1750218646215,-1176.14443414,0.00022107,2]
[366369658,1750218646228,-3708.0603511,0.00022107,2]
[366372932,1750218719047,341.7,0.00019977,2]
[366372933,1750219610088,-222.04152509,0.00018711,2]
[366372934,1750219630125,-4777.95847491,0.00018711,2]
[366372935,1750219630147,-150.0,0.000189,2]
[366372936,1750219630170,-388.76,0.00019989,2]
[366372937,1750219630198,-1383.34579053,0.000209,4]
[366372938,1750219630218,-300.0,0.0002097,2]
[366372939,1750219630238,-500.0,0.00020971,2]
[366372940,1750219630259,-416.28003367,0.00020971,2]
[366372941,1750219630281,-500.0,0.00020971,2]
[366372942,1750219630301,-413.01562251,0.00020971,2]
[366372943,1750219630322,-500.0,0.00020971,2]
[366372944,1750219630342,-500.0,0.00020971,2]
[366372945,1750219630364,-500.0,0.00020971,2]
[366372946,1750219630386,-620.0,0.00020971,2]
[366372947,1750219630408,-174.026,0.00020971,2]
[366372948,1750219630429,-177.41496496,0.00020971,2]
[366372949,1750219630450,-17718.9675767,0.00020972,2]
[366372950,1750219630477,-1383.34579048,0.00021072,4]
[366372951,1750219630506,-1383.34579048,0.00021245,4]
[366372952,1750219630534,-1383.34579048,0.00021417,5]
[366372953,1750219630566,-1383.34579048,0.0002159,5]
[366372954,1750219630597,-1383.34579048,0.00021762,5]
[366372955,1750219630618,-777.52,0.00021806,2]
[366372956,1750219630639,-254.532488,0.0002181,6]